bitfinex/quotes_SOLUSD_20250929
["timestamp","ask_amount","ask_price","bid_price","bid_amount"]
[1759160486345,0.7,211.92,211.86,0.67]
[1759160486840,31.41780723,211.93,211.86,0.67]
[1759160487034,31.41780723,211.93,211.85,40.1225385]
[1759160487035,0.7,211.92,211.85,40.1225385]
[1759160487231,26.0,211.9,211.85,40.1225385]
[1759160487431,26.7,211.9,211.85,40.1225385]
[1759160487738,32.11780723,211.9,211.85,40.1225385]
[1759160488144,32.11780723,211.9,211.85,40.7925385]
[1759160488654,26.0,211.93,211.86,0.67]
[1759160489232,26.7,211.93,211.86,0.67]
[1759160490344,28.89976017,211.93,211.86,0.67]
[1759160490537,28.89976017,211.93,211.87,16.51956387]
[1759160490737,0.7,211.92,211.87,16.51956387]
[1759160490938,0.7,211.91,211.87,16.51956387]
[1759160491133,0.7,211.9,211.87,16.51956387]
[1759160491439,28.19976017,211.93,211.87,16.51956387]
[1759160492045,28.89976017,211.93,211.87,16.51956387]
[1759160493345,28.89976017,211.93,211.87,50.45956387]
[1759160493947,26.7,211.93,211.87,50.45956387]
[1759160494461,26.0,211.93,211.87,51.12956387]
[1759160494763,2.19976017,211.94,211.87,51.12956387]
[1759160495139,0.7,211.93,211.87,51.12956387]
[1759160495743,28.19976017,211.94,211.88,0.67]
[1759160496150,2.19976017,211.94,211.88,0.67]
[1759160496348,0.8,211.99,211.89,13.59559401]
[1759160496549,0.8,211.99,211.9,34.61]
[1759160496750,0.8,211.99,211.92,16.51566628]
[1759160497048,0.8,211.99,211.93,33.94]
[1759160497243,0.1,211.99,211.93,34.61]
[1759160497445,0.1,211.99,211.94,0.67]
[1759160497744,0.1,211.99,211.95,13.59559401]
[1759160497944,0.1,211.99,211.96,34.61]
[1759160498144,0.1,211.99,211.96,0.67]
[1759160498372,0.8,211.99,211.95,33.94]
[1759160498590,0.1,211.99,211.95,33.94]
[1759160498864,0.1,211.99,211.96,17.18254953]
[1759160499048,0.1,211.99,211.96,16.51254953]
[1759160499252,0.7,211.98,211.96,4.71787129]
[1759160499451,0.1,211.99,211.96,4.71787129]
[1759160500178,0.8,211.99,211.96,16.51254953]
[1759160500352,0.1,211.99,211.96,16.51254953]
[1759160500863,0.1,211.99,211.96,11.79467824]
[1759160503149,0.1,211.99,211.96,16.51254953]
[1759160503546,0.8,211.99,211.96,16.51254953]
[1759160504453,0.7,211.98,211.96,4.71787129]
[1759160505383,0.1,211.99,211.96,4.71787129]
[1759160505674,0.8,211.99,211.96,4.71787129]
[1759160505970,0.8,211.99,211.96,16.51254953]
[1759160508062,0.1,211.99,211.97,0.67]
[1759160508451,0.1,211.99,211.96,16.51254953]
[1759160508668,0.1,211.99,211.96,17.18254953]
[1759160509055,0.1,211.99,211.96,16.51254953]
[1759160509261,0.1,211.99,211.96,17.18254953]
[1759160509858,0.1,211.99,211.96,16.51254953]
[1759160510182,0.7,211.98,211.96,16.51254953]
[1759160510771,0.7,211.97,211.96,4.71787129]
[1759160510971,0.7,211.97,211.9,4.71920717]
[1759160511156,28.88976017,211.96,211.9,50.4369391]
[1759160511356,28.19976017,211.93,211.9,4.71920717]
[1759160511570,0.69,211.92,211.83,24.30330002]
[1759160511766,2.19976017,211.9,211.84,33.92]
[1759160511955,2.19976017,211.9,211.85,16.52089951]
[1759160512159,2.88976017,211.9,211.85,17.22089951]
[1759160513776,2.19976017,211.95,211.86,0.7]
[1759160513966,28.19976017,211.95,211.87,33.92]
[1759160514169,26.0,211.95,211.88,17.21878421]
[1759160514482,26.0,211.95,211.89,0.7]
[1759160514672,26.0,211.95,211.9,33.92]
[1759160514878,0.69,211.95,211.9,33.92]
[1759160515088,2.88976017,211.98,211.91,0.7]
[1759160516059,28.88976017,211.98,211.92,16.51566628]
[1759160516868,26.0,211.97,211.92,16.51566628]
[1759160517073,28.88976017,211.98,211.92,16.51566628]
[1759160517074,28.19976017,211.95,211.92,16.51566628]
[1759160517377,28.88976017,211.95,211.92,16.51566628]
[1759160517787,0.69,211.94,211.92,4.71876179]
[1759160517976,0.69,211.94,211.89,11.79815463]
[1759160517977,0.69,211.93,211.89,11.79815463]
[1759160518165,26.0,211.94,211.89,11.79815463]
[1759160518371,26.0,211.94,211.9,0.7]
[1759160518578,2.19976017,211.95,211.9,0.7]
[1759160518779,2.19976017,211.95,211.91,0.7]
[1759160518988,2.19976017,211.95,211.89,11.79815463]
[1759160519176,0.69,211.94,211.89,11.79815463]
[1759160519369,0.69,211.93,211.89,11.79815463]
[1759160519786,2.19976017,211.91,211.89,11.79815463]
[1759160519966,2.19976017,211.91,211.89,17.21758452]
[1759160520167,2.19976017,211.94,211.9,0.7]
[1759160520486,2.19976017,211.94,211.91,0.7]
[1759160520664,2.19976017,211.94,211.89,50.41758452]
[1759160520866,26.69,211.97,211.9,0.7]
[1759160521061,2.19976017,211.94,211.9,0.7]
[1759160521282,2.19976017,211.94,211.91,0.7]
[1759160521481,0.69,211.93,211.89,16.51758452]
[1759160521669,2.19976017,211.94,211.89,50.41758452]
[1759160521868,0.69,211.93,211.89,50.41758452]
[1759160522086,2.19976017,211.94,211.89,11.79815463]
[1759160522264,2.19976017,211.94,211.89,12.49815463]
[1759160522468,2.88976017,211.94,211.89,12.49815463]
[1759160522786,28.19976017,211.91,211.88,4.71965263]
[1759160523087,28.19976017,211.91,211.88,16.51878421]
[1759160523283,28.19976017,211.91,211.88,17.21878421]
[1759160523486,2.19976017,211.91,211.88,16.51878421]
[1759160523688,2.19976017,211.91,211.88,17.21878421]
[1759160524386,5.41601142,211.92,211.89,0.7]
[1759160524587,5.41601142,211.95,211.9,0.7]
[1759160525085,5.41601142,211.95,211.89,33.9]
[1759160525292,5.41601142,211.95,211.9,0.7]
[1759160525493,0.69,211.94,211.89,33.9]
[1759160525798,5.41601142,211.92,211.88,153.31704737]
[1759160526294,5.41601142,211.92,211.88,119.41704737]
[1759160526976,0.69,211.91,211.88,95.81878421]
[1759160527182,0.69,211.9,211.88,95.81878421]
[1759160527378,0.69,211.9,211.88,16.51878421]
[1759160527576,5.41601142,211.92,211.88,16.51878421]
[1759160527794,5.41601142,211.92,211.89,0.7]
[1759160528091,0.69,211.96,211.89,0.7]
[1759160528285,5.41601142,211.92,211.89,0.7]
[1759160528498,5.41601142,211.92,211.9,0.7]
[1759160528789,5.41601142,211.95,211.91,0.7]
[1759160528996,5.41601142,211.95,211.92,4.71876179]
[1759160529580,5.41601142,211.95,211.92,16.51566628]
[1759160530184,5.41601142,211.97,211.93,0.7]
[1759160530388,26.0,211.94,211.92,16.51566628]
[1759160530594,26.0,211.94,211.92,17.21566628]
[1759160530787,31.41601142,211.94,211.92,4.71876179]
[1759160530989,32.10601142,211.94,211.92,4.71876179]
[1759160531193,31.41601142,211.94,211.91,16.51636135]
[1759160531409,31.41601142,211.94,211.91,17.21636135]
[1759160531795,31.41601142,211.94,211.92,0.7]
[1759160531989,31.41601142,211.94,211.91,17.21636135]
[1759160533077,31.41601142,211.94,211.91,11.79737688]
[1759160533297,0.69,211.93,211.91,11.79737688]
[1759160533488,31.41601142,211.94,211.91,11.79737688]
[1759160533803,31.41601142,211.94,211.89,4.71942989]
[1759160533804,0.69,211.93,211.89,4.71942989]
[1759160534001,5.41601142,211.9,211.89,4.71942989]
[1759160534182,5.41601142,211.9,211.89,5.41942989]
[1759160534498,5.41601142,211.9,211.89,4.71942989]
[1759160534718,26.72,211.95,211.89,16.51800462]
[1759160534914,5.41601142,211.93,211.89,17.21800462]
[1759160535087,26.0,211.95,211.89,17.21800462]
[1759160535088,26.0,211.95,211.91,16.51644565]
[1759160535282,26.0,211.95,211.92,0.7]
[1759160535476,3.138121,212.01,211.91,16.51644565]
[1759160535690,5.41601142,211.97,211.91,16.51644565]
[1759160536088,6.13601142,211.97,211.91,16.51644565]
[1759160536287,32.13601142,211.97,211.91,16.51644565]
[1759160536502,5.41601142,211.94,211.91,16.51644565]
[1759160536884,26.0,211.92,211.91,4.71898447]
[1759160537097,26.0,211.92,211.89,16.51800462]
[1759160537709,5.41601142,211.91,211.89,4.71942989]
[1759160538012,5.41601142,211.91,211.89,4.69942989]
[1759160538525,26.0,211.93,211.89,4.69942989]
[1759160538682,5.41601142,211.9,211.89,4.69942989]
[1759160539377,5.41601142,211.9,211.88,4.71965263]
[1759160539781,5.41601142,211.9,211.89,0.7]
[1759160540203,0.72,211.95,211.89,0.7]
[1759160540424,5.41601142,211.93,211.88,95.81878421]
[1759160540719,26.0,211.9,211.88,95.81878421]
[1759160540888,26.0,211.9,211.88,16.51878421]
[1759160541687,5.41601142,211.9,211.88,4.71965263]
[1759160542289,8.084048,211.9,211.88,4.71965263]
[1759160543203,0.66,211.89,211.88,4.71965263]
[1759160543405,8.084048,211.9,211.88,4.71965263]
[1759160543406,8.744048,211.9,211.88,4.71965263]
[1759160543627,8.084048,211.9,211.87,11.79944371]
[1759160543911,8.744048,211.9,211.87,11.79944371]
[1759160544501,8.084048,211.9,211.87,11.79944371]
[1759160545289,0.66,211.89,211.87,11.79944371]
[1759160545703,26.0,211.87,211.85,4.72032098]
[1759160545914,0.66,211.86,211.85,4.72032098]
[1759160546298,4.09906595,211.86,211.85,4.72032098]
[1759160546504,4.09906595,211.86,211.77,13.59559401]
[1759160546505,30.09906595,211.86,211.78,45.70422444]
[1759160546686,30.09906595,211.86,211.79,0.72]
[1759160546887,29.43906595,211.86,211.79,0.72]
[1759160547292,26.0,211.85,211.79,0.72]
[1759160547597,26.0,211.85,211.78,153.33551161]
[1759160547798,26.66,211.85,211.79,0.72]
[1759160547992,26.0,211.85,211.79,0.72]
[1759160548591,33.9,211.88,211.79,0.72]
[1759160548792,59.9,211.88,211.79,0.72]
[1759160549299,26.0,211.88,211.8,40.13220018]
[1759160549505,4.09906595,211.94,211.81,48.21559401]
[1759160549712,26.0,211.93,211.83,13.59559401]
[1759160549902,26.66,211.93,211.84,34.62]
[1759160550117,26.66,211.93,211.85,0.72]
[1759160550302,34.74239499,211.93,211.85,0.72]
[1759160550695,8.74239499,211.93,211.85,0.72]
[1759160551092,26.0,211.9,211.85,0.72]
[1759160551399,26.0,211.9,211.86,16.52034361]
[1759160552306,8.74239499,211.93,211.87,0.72]
[1759160552506,12.57745574,211.93,211.86,16.52034361]
[1759160552817,34.74239499,211.93,211.86,16.52034361]
[1759160553625,34.08239499,211.93,211.87,0.72]
[1759160555110,26.0,211.93,211.87,34.62]
[1759160555312,26.0,211.93,211.89,16.51800462]
[1759160555496,8.08239499,211.96,211.89,16.51800462]
[1759160555897,8.08239499,211.96,211.89,40.11515408]
[1759160556130,8.08239499,211.96,211.9,0.72]
[1759160556629,8.74239499,211.96,211.9,0.72]
[1759160556828,26.66,211.96,211.9,0.72]
[1759160557006,26.0,211.95,211.9,0.72]
[1759160557199,26.0,211.98,211.91,33.88]
[1759160557401,0.76,211.99,211.92,40.82947526]
[1759160557898,26.0,211.98,211.92,40.82947526]
[1759160558522,0.66,211.97,211.92,16.51566628]
[1759160558724,0.66,211.96,211.92,16.51566628]
[1759160559229,34.08239499,211.98,211.93,0.72]
[1759160559414,34.74239499,211.98,211.94,16.51410776]
[1759160560207,0.66,211.98,211.94,16.51410776]
[1759160560401,0.1,211.99,211.94,17.23410776]
[1759160560612,0.76,211.99,211.94,17.23410776]
[1759160561121,26.1,211.99,211.95,34.6]
[1759160561325,26.1,211.99,211.96,16.51254953]
[1759160561326,3.24535158,211.99,211.96,16.51254953]
[1759160561621,0.1,211.99,211.96,17.23254953]
[1759160561825,0.1,211.99,211.96,16.51254953]
[1759160562008,0.76,211.99,211.96,16.51254953]
[1759160562207,0.66,211.98,211.96,16.51254953]
[1759160563031,0.1,211.99,211.96,16.51254953]
[1759160563321,0.1,211.99,211.98,4.71742617]
[1759160563728,0.76,211.99,211.98,4.71742617]
[1759160564629,0.1,211.99,211.98,4.71742617]
[1759160565502,0.1,211.99,211.97,4.71764872]
[1759160566015,0.76,211.99,211.97,4.71764872]
[1759160566828,0.1,211.99,211.97,4.71764872]
[1759160567202,26.66,211.98,211.96,79.3]
[1759160567402,0.66,211.97,211.9,4.71920717]
[1759160567603,34.08239499,211.94,211.9,16.51678932]
[1759160567914,26.0,211.91,211.9,4.71920717]
[1759160568220,0.66,211.93,211.9,4.71920717]
[1759160568524,26.0,211.91,211.9,4.71920717]
[1759160568900,26.0,211.9,211.85,0.72]
[1759160569102,8.08239499,211.88,211.81,17.24424341]
[1759160569321,8.74239499,211.88,211.81,51.12424341]
[1759160570202,3.43878694,211.87,211.81,51.12424341]
[1759160572628,3.43878694,211.87,211.81,16.52424341]
[1759160572839,3.43878694,211.85,211.81,16.52424341]
[1759160573135,4.12878694,211.85,211.81,16.52424341]
[1759160573323,0.69,211.84,211.81,16.52424341]
[1759160573913,0.69,211.84,211.81,11.80303101]
[1759160574137,4.12878694,211.83,211.8,4.72143531]
[1759160575309,4.12878694,211.83,211.8,16.5250236]
[1759160576148,4.12878694,211.83,211.8,11.80358829]
[1759160576442,3.43878694,211.83,211.8,11.80358829]
[1759160577813,26.0,211.84,211.8,11.80358829]
[1759160578015,29.43878694,211.84,211.8,17.2350236]
[1759160580039,26.0,211.87,211.81,34.59]
[1759160580245,26.0,211.87,211.82,0.71]
[1759160580416,26.0,211.87,211.83,0.71]
[1759160580617,26.0,211.87,211.81,33.88]
[1759160580817,26.0,211.87,211.82,0.71]
[1759160581017,0.69,211.86,211.81,33.88]
[1759160581225,3.43878694,211.86,211.81,33.88]
[1759160581443,3.43878694,211.84,211.8,16.5250236]
[1759160581945,4.12878694,211.84,211.8,11.80358829]
[1759160582144,3.43878694,211.84,211.8,11.80358829]
[1759160582443,3.43878694,211.81,211.78,79.3]
[1759160582744,26.0,211.82,211.75,33.88]
[1759160582921,26.0,211.82,211.79,0.71]
[1759160583242,3.43878694,211.85,211.79,0.71]
[1759160583736,0.69,211.86,211.79,0.71]
[1759160583942,4.12878694,211.86,211.8,16.5250236]
[1759160585341,3.43878694,211.84,211.8,4.72143531]
[1759160585551,3.43878694,211.82,211.76,4.72232716]
[1759160585751,3.43878694,211.8,211.76,4.72232716]
[1759160586048,0.69,211.79,211.75,4.72255017]
[1759160586261,3.43878694,211.8,211.75,17.23892561]
[1759160586438,3.43878694,211.8,211.75,16.52892561]
[1759160586631,3.43878694,211.8,211.76,0.71]
[1759160587854,3.43878694,211.78,211.73,4.72299626]
[1759160588151,3.43878694,211.78,211.73,17.24048693]
[1759160588348,3.43878694,211.78,211.74,0.71]
[1759160588534,4.12878694,211.78,211.73,16.53048693]
[1759160588729,4.12878694,211.78,211.73,17.24048693]
[1759160588929,3.43878694,211.78,211.74,0.71]
[1759160589539,26.0,211.77,211.74,0.71]
[1759160590033,29.43878694,211.78,211.75,17.23892561]
[1759160590357,26.0,211.77,211.75,16.52892561]
[1759160590933,30.12878694,211.8,211.75,16.52892561]
[1759160591136,0.69,211.79,211.75,16.52892561]
[1759160591751,0.69,211.78,211.75,16.52892561]
[1759160591936,33.94572125,211.8,211.75,16.52892561]
[1759160592129,0.69,211.79,211.75,11.80637544]
[1759160592333,3.43878694,211.76,211.71,79.3]
[1759160592634,3.43878694,211.74,211.71,79.3]
[1759160593242,3.43878694,211.74,211.71,84.02323757]
[1759160594035,4.10878694,211.74,211.71,4.72323757]
[1759160594445,3.43878694,211.74,211.71,4.72323757]
[1759160594638,26.67,211.73,211.69,4.72368765]
[1759160594848,3.43878694,211.7,211.69,4.72368765]
[1759160596175,3.43878694,211.7,211.68,4.72411186]
[1759160596552,3.43878694,211.7,211.68,5.39411186]
[1759160596745,3.43878694,211.7,211.69,0.67]
[1759160597641,3.43878694,211.7,211.68,4.72411186]
[1759160597846,4.10878694,211.7,211.68,4.72411186]
[1759160598759,4.10878694,211.7,211.66,16.53557166]
[1759160599153,4.10878694,211.7,211.66,4.72455825]
[1759160599937,3.43878694,211.7,211.66,4.72455825]
[1759160600159,3.43878694,211.7,211.66,16.53595388]
[1759160600361,0.67,211.69,211.66,4.72455825]
[1759160600854,3.43878694,211.67,211.65,4.92476959]
[1759160601038,3.43878694,211.67,211.65,0.2]
[1759160601438,0.71,211.66,211.65,0.2]
[1759160601950,26.71,211.66,211.65,0.2]
[1759160602261,28.91577873,211.66,211.65,0.2]
[1759160603140,2.91577873,211.66,211.65,0.2]
[1759160604864,2.20577873,211.66,211.65,4.92478147]
[1759160605164,28.20577873,211.66,211.65,4.92478147]
[1759160608285,2.20577873,211.66,211.65,4.92478147]
[1759160609274,26.0,211.7,211.65,17.41673516]
[1759160609482,26.0,211.69,211.65,16.73673516]
[1759160609682,26.0,211.69,211.66,0.68]
[1759160610166,26.0,211.69,211.65,16.73673516]
[1759160610475,26.0,211.69,211.65,17.41673516]
[1759160611478,26.71,211.68,211.65,4.92478147]
[1759160611852,0.71,211.67,211.65,4.92478147]
[1759160612054,0.71,211.66,211.65,4.92478147]
[1759160612962,26.0,211.68,211.65,4.92478147]
[1759160613352,26.71,211.68,211.65,4.92478147]
[1759160614452,26.0,211.69,211.65,5.60478147]
[1759160614675,26.0,211.68,211.65,17.41673516]
[1759160616074,26.0,211.68,211.66,0.68]
[1759160616381,26.0,211.68,211.67,4.72433504]
[1759160618383,26.0,211.68,211.66,4.72455825]
[1759160619179,26.71,211.7,211.66,4.72455825]
[1759160619481,0.71,211.69,211.66,4.72455825]
[1759160620058,26.0,211.7,211.66,4.72455825]
[1759160620660,0.71,211.69,211.66,4.72455825]
[1759160621579,0.71,211.68,211.65,0.2]
[1759160621768,2.91577873,211.68,211.65,0.2]
[1759160622091,26.0,211.66,211.65,0.2]
[1759160622264,28.20577873,211.66,211.65,0.2]
[1759160622463,28.91577873,211.66,211.65,0.2]
[1759160623481,26.71,211.66,211.65,0.2]
[1759160623673,34.57,211.66,211.65,0.2]
[1759160624388,36.77577873,211.66,211.65,0.2]
[1759160624771,33.86,211.66,211.65,0.2]
[1759160624972,26.0,211.67,211.65,0.2]
[1759160625179,1.89586937,211.7,211.65,5.60474904]
[1759160625381,0.71,211.69,211.65,5.60474904]
[1759160625575,26.71,211.69,211.65,5.60474904]
[1759160626166,26.0,211.69,211.65,5.60474904]
[1759160626367,26.0,211.72,211.66,0.68]
[1759160626668,26.0,211.68,211.66,0.68]
[1759160627981,26.0,211.68,211.65,96.03670273]
[1759160628180,59.86,211.72,211.67,0.68]
[1759160628377,0.71,211.71,211.65,96.71670273]
[1759160628981,0.71,211.7,211.65,96.03670273]
[1759160629186,0.71,211.7,211.65,84.90474904]
[1759160629571,0.71,211.69,211.65,84.22474904]
[1759160630390,2.20577873,211.71,211.65,84.90474904]
[1759160630693,2.91577873,211.71,211.65,84.90474904]
[1759160631082,59.86,211.7,211.65,84.90474904]
[1759160631290,60.54,211.7,211.65,84.90474904]
[1759160631884,0.68,211.69,211.65,84.90474904]
[1759160632090,0.68,211.68,211.65,79.5]
[1759160632272,26.0,211.66,211.65,79.5]
[1759160632595,26.0,211.66,211.65,4.92478147]
[1759160637801,26.68,211.66,211.65,4.92478147]
[1759160638469,26.0,211.66,211.65,4.92478147]
[1759160638671,0.68,211.66,211.65,0.2]
[1759160639477,3.82218814,211.66,211.65,0.2]
[1759160639807,17.41778215,211.66,211.65,0.2]
[1759160640803,22.1423404,211.66,211.65,0.2]
[1759160642006,53.46356088,211.66,211.65,0.2]
[1759160642392,58.18811913,211.66,211.65,0.2]
[1759160642787,53.46356088,211.66,211.65,0.2]
[1759160642995,39.86796687,211.66,211.65,0.2]
[1759160643299,36.72577873,211.66,211.65,0.2]
[1759160643909,2.20577873,211.66,211.65,0.2]
[1759160644089,2.20577873,211.66,211.65,5.59478147]
[1759160644403,3.14218814,211.7,211.65,5.59478147]
[1759160644404,2.20577873,211.69,211.65,5.59478147]
[1759160644708,26.0,211.66,211.65,4.92478147]
[1759160645080,26.0,211.66,211.65,0.2]
[1759160645597,28.20577873,211.66,211.65,0.2]
[1759160646180,67.45033698,211.66,211.65,0.2]
[1759160646402,70.59252512,211.66,211.65,0.2]
[1759160647214,36.04577873,211.66,211.65,0.2]
[1759160647413,2.20577873,211.66,211.65,0.2]
[1759160647717,28.20577873,211.66,211.65,0.2]
[1759160648014,2.20577873,211.66,211.65,0.2]
[1759160648312,28.20577873,211.66,211.65,0.87]
[1759160648792,28.20577873,211.66,211.65,5.59478147]
[1759160649713,28.20577873,211.66,211.65,4.92478147]
[1759160650598,28.20577873,211.66,211.65,5.59478147]
[1759160650811,2.20577873,211.69,211.65,17.40673516]
[1759160651122,2.20577873,211.72,211.66,0.67]
[1759160651284,26.0,211.71,211.66,0.67]
[1759160652903,26.0,211.71,211.67,4.72433504]
[1759160653101,26.0,211.71,211.67,17.20517266]
[1759160653304,26.0,211.71,211.67,5.39433504]
[1759160653603,26.0,211.67,211.65,4.92457452]
[1759160653982,26.0,211.66,211.65,4.92457452]
[1759160654182,26.0,211.66,211.65,5.58457452]
[1759160654382,26.0,211.66,211.65,4.92457452]
[1759160655115,2.20577873,211.67,211.65,4.92457452]
[1759160655320,28.20577873,211.67,211.65,4.92457452]
[1759160655606,26.0,211.66,211.65,4.92457452]
[1759160656204,28.20577873,211.67,211.65,4.92457452]
[1759160656410,26.0,211.66,211.65,4.92457452]
[1759160657716,0.69,211.66,211.65,0.2]
[1759160659312,39.23455825,211.66,211.65,0.2]
[1759160659490,42.38422594,211.66,211.65,0.2]
[1759160659692,39.23455825,211.66,211.65,0.2]
[1759160660384,42.38422594,211.66,211.65,0.2]
[1759160660590,34.51,211.66,211.65,0.2]
[1759160660805,39.23455825,211.66,211.65,0.2]
[1759160661007,42.38422594,211.66,211.65,0.2]
[1759160662293,37.65966769,211.66,211.65,0.2]
[1759160664096,37.65927179,211.66,211.65,0.2]
[1759160664305,41.1059522,211.66,211.65,0.2]
[1759160664496,37.95668041,211.66,211.65,0.2]
[1759160664700,56.27683267,211.66,211.65,0.2]
[1759160665020,59.42610446,211.66,211.65,0.2]
[1759160667998,62.87278487,211.66,211.65,0.2]
[1759160668410,64.76901375,211.66,211.65,0.2]
[1759160668916,64.76901375,211.66,211.64,0.2]
[1759160668917,13.59559401,211.65,211.64,0.2]
[1759160669101,16.7448658,211.65,211.64,0.2]
[1759160669306,17.4548658,211.65,211.64,0.2]
[1759160669624,19.35127448,211.65,211.64,0.2]
[1759160670900,24.07605595,211.65,211.64,0.2]
[1759160672407,55.97964727,211.65,211.64,0.2]
[1759160673098,3.14927179,211.65,211.64,0.2]
[1759160673317,3.44668041,211.66,211.64,0.9]
[1759160673630,34.51,211.65,211.64,0.2]
[1759160674143,33.8,211.65,211.64,0.2]
[1759160675417,39.23478147,211.65,211.64,0.2]
[1759160675617,42.38405326,211.65,211.64,0.2]
[1759160675827,41.67405326,211.65,211.64,0.2]
[1759160676015,38.52478147,211.65,211.64,0.2]
[1759160677920,33.8,211.65,211.64,0.2]
[1759160681319,37.24668041,211.65,211.64,0.2]
[1759160682128,42.68146188,211.65,211.64,0.2]
[1759160682325,45.83073367,211.65,211.64,0.2]
[1759160682628,40.3959522,211.65,211.64,0.9]
[1759160682806,37.24668041,211.65,211.64,0.9]
[1759160683705,63.24668041,211.65,211.64,5.62500472]
[1759160683925,66.3959522,211.65,211.64,5.62500472]
[1759160684619,66.3959522,211.65,211.64,0.9]
[1759160685030,67.1059522,211.65,211.64,0.2]
[1759160685441,71.83073367,211.65,211.64,0.2]
[1759160686314,66.3959522,211.65,211.64,0.2]
[1759160687523,66.3759522,211.65,211.64,0.2]
[1759160688219,66.3759522,211.65,211.64,0.9]
[1759160688536,66.3759522,211.65,211.64,0.2]
[1759160688838,32.5959522,211.65,211.64,0.2]
[1759160689037,63.22668041,211.65,211.64,0.2]
[1759160689219,66.3759522,211.65,211.64,0.2]
[1759160689709,32.5959522,211.65,211.64,0.2]
[1759160689912,63.22668041,211.65,211.64,5.62500472]
[1759160690125,66.3759522,211.65,211.64,5.62500472]
[1759160690534,63.22668041,211.65,211.64,5.62500472]
[1759160690926,3.44668041,211.65,211.64,5.62500472]
[1759160692135,3.44668041,211.65,211.64,4.92500472]
[1759160692453,3.44668041,211.65,211.64,5.61500472]
[1759160692621,3.44668041,211.65,211.64,0.2]
[1759160692944,3.44668041,211.65,211.64,0.89]
[1759160694050,59.78,211.66,211.64,5.61500472]
[1759160694224,3.44668041,211.65,211.64,5.61500472]
[1759160694536,3.44668041,211.65,211.64,4.92500472]
[1759160694748,3.44668041,211.65,211.64,5.61500472]
[1759160695516,3.44668041,211.65,211.64,0.2]
[1759160696220,6.59488966,211.65,211.64,0.2]
[1759160696534,3.44668041,211.65,211.64,0.2]
[1759160697247,3.44668041,211.65,211.64,4.92500472]
[1759160697949,3.44668041,211.65,211.64,0.2]
[1759160698324,33.78,211.66,211.64,5.61500472]
[1759160698532,3.44668041,211.65,211.64,5.61500472]
[1759160698843,3.44668041,211.65,211.64,4.92500472]
[1759160699560,3.44668041,211.65,211.64,0.2]
[1759160699845,3.44668041,211.65,211.64,5.61496613]
[1759160700645,3.14820925,211.67,211.64,17.42747794]
[1759160700817,3.44668041,211.68,211.65,0.69]
[1759160701018,26.0,211.67,211.64,4.92496613]
[1759160701323,26.0,211.67,211.65,0.69]
[1759160701522,26.0,211.65,211.64,0.2]
[1759160702433,29.44668041,211.65,211.64,0.2]
[1759160702743,63.20668041,211.65,211.64,0.2]
[1759160702945,66.35488966,211.65,211.64,0.2]
[1759160703127,41.05488966,211.65,211.64,0.2]
[1759160703725,45.77967113,211.65,211.64,0.2]
[1759160704845,42.95093877,211.65,211.64,0.2]
[1759160705016,6.59488966,211.65,211.64,0.89]
[1759160705223,40.35488966,211.65,211.64,0.89]
[1759160705932,6.59488966,211.65,211.64,5.61500472]
[1759160706546,3.14820925,211.65,211.64,5.61500472]
[1759160706749,6.59488966,211.69,211.64,17.42751653]
[1759160707050,3.14820925,211.68,211.65,0.69]
[1759160707359,3.14820925,211.68,211.66,0.69]
[1759160707732,26.0,211.67,211.66,0.69]
[1759160707934,3.14820925,211.68,211.66,0.69]
[1759160708238,26.0,211.67,211.66,0.69]
[1759160708848,26.0,211.67,211.64,4.92500472]
[1759160709051,26.0,211.65,211.64,0.2]
[1759160709243,26.0,211.65,211.64,4.92500472]